bitfinex/quotes_SOLUSD_20260214
["timestamp","ask_amount","ask_price","bid_price","bid_amount"]
[1771056840528,1.17136446,85.567,85.541,1.22776817]
[1771056840733,12.85731389,85.573,85.55,17.59464705]
[1771056841331,1.16588442,85.572,85.55,17.59464705]
[1771056841532,1.16588442,85.572,85.548,1.22776817]
[1771056842227,1.16588442,85.572,85.543,11.6899021]
[1771056842429,1.16588442,85.572,85.544,1.16240378]
[1771056842946,1.16588442,85.572,85.546,1.16240378]
[1771056843928,11.6862021,85.571,85.546,1.16240378]
[1771056844541,12.85208652,85.571,85.546,1.16240378]
[1771056844733,1.16588442,85.57,85.546,1.16240378]
[1771056844940,1.16588442,85.568,85.546,1.16240378]
[1771056846838,1.16588442,85.568,85.539,1.16240378]
[1771056847050,1.16588442,85.566,85.541,1.16240378]
[1771056848239,1.16588442,85.572,85.545,1.16240378]
[1771056848438,1.16588442,85.571,85.545,1.16240378]
[1771056849154,11.68633867,85.57,85.545,1.16240378]
[1771056849341,12.85222309,85.57,85.545,1.16240378]
[1771056850257,1.16588442,85.57,85.545,1.16240378]
[1771056851356,5.90726857,85.57,85.543,11.6899112]
[1771056851558,1.16588442,85.569,85.531,1.16240378]
[1771056852060,1.16588442,85.569,85.541,1.16240378]
[1771056852839,11.68633411,85.571,85.541,1.16240378]
[1771056853036,1.16588442,85.57,85.514,1.16240378]
[1771056853352,11.68633411,85.571,85.541,1.16240378]
[1771056853556,1.16588442,85.574,85.551,1.16240378]
[1771056854660,11.68483658,85.581,85.561,1.16240378]
[1771056855241,1.16588442,85.588,85.561,1.16240378]
[1771056855437,1.16588442,85.619,85.581,1.16240378]
[1771056855844,1.16588442,85.619,85.591,1.16240378]
[1771056856044,1.16588442,85.617,85.591,1.16240378]
[1771056856763,1.16588442,85.615,85.591,1.16240378]
[1771056857542,1.16588442,85.615,85.585,1.16240378]
[1771056858256,11.6800598,85.616,85.57,5.90726857]
[1771056858257,1.16588442,85.609,85.57,5.90726857]
[1771056858465,1.16588442,85.607,85.571,1.16240378]
[1771056858660,1.16588442,85.599,85.571,1.16240378]
[1771056859166,5.90726857,85.59,85.564,1.16240378]
[1771056859344,1.16588442,85.589,85.556,1.16240378]
[1771056859744,1.16588442,85.599,85.571,1.16240378]
[1771056861065,1.16588442,85.599,85.573,1.16240378]
[1771056861366,12.84840036,85.598,85.573,1.16240378]
[1771056861768,1.16588442,85.597,85.573,1.16240378]
[1771056862163,1.16588442,85.597,85.572,11.68606553]
[1771056862971,1.16588442,85.589,85.562,11.68740955]
[1771056863271,1.16588442,85.58,85.559,1.16240378]
[1771056863781,11.68278891,85.596,85.561,1.16240378]
[1771056863947,77.12,85.609,85.581,1.16240378]
[1771056864358,1.16588442,85.61,85.581,1.16240378]
[1771056864571,1.16588442,85.618,85.591,1.16240378]
[1771056864950,11.67992337,85.617,85.591,1.16240378]
[1771056865156,1.16588442,85.616,85.591,1.16240378]
[1771056866366,1.16588442,85.616,85.59,17.56126814]
[1771056866755,1.16588442,85.616,85.591,11.68347139]
[1771056866962,1.16588442,85.616,85.592,1.16240378]
[1771056867481,77.14,85.623,85.581,1.16240378]
[1771056867482,1.16588442,85.614,85.581,1.16240378]
[1771056868493,1.16588442,85.614,85.555,47.68]
[1771056868494,1.16588442,85.599,85.57,17.56126814]
[1771056868853,1.16588442,85.599,85.571,1.16240378]
[1771056871467,1.16588442,85.599,85.573,1.16853669]
[1771056873057,1.16454021,85.598,85.573,1.16853669]
[1771056873470,1.16454021,85.609,85.581,1.16853669]
[1771056874576,1.16454021,85.607,85.579,11.68507778]
[1771056874783,1.16454021,85.607,85.573,11.68590363]
[1771056874981,1.16454021,85.607,85.573,12.85444032]
[1771056875277,1.16454021,85.607,85.574,1.16853669]
[1771056877091,1.16454021,85.605,85.574,1.16853669]
[1771056877458,1.16454021,85.605,85.576,1.16853669]
[1771056877786,1.16454021,85.605,85.581,1.16853669]
[1771056879687,77.06,85.62,85.583,1.15090871]
[1771056879865,1.19004149,85.609,85.583,1.15090871]
[1771056880064,1.19004149,85.609,85.574,1.15090871]
[1771056880265,17.56126814,85.6,85.567,11.68663556]
[1771056880473,1.19004149,85.599,85.57,17.56126814]
[1771056880675,1.19004149,85.599,85.571,1.15090871]
[1771056881269,1.19004149,85.606,85.571,1.15090871]
[1771056881472,1.19004149,85.606,85.58,17.56126814]
[1771056881672,11.68156065,85.605,85.581,1.15090871]
[1771056881985,1.19004149,85.604,85.581,1.15090871]
[1771056884591,1.19004149,85.602,85.574,1.15090871]
[1771056886888,1.19004149,85.602,85.575,11.68565585]
[1771056887094,1.19004149,85.602,85.581,1.15090871]
[1771056887397,12.87182487,85.604,85.581,1.15090871]
[1771056887584,1.19004149,85.603,85.581,1.15090871]
[1771056889092,11.68101484,85.609,85.583,1.15090871]
[1771056889396,12.870429,85.614,85.583,1.15090871]
[1771056889574,5.90266527,85.62,85.583,1.15090871]
[1771056889575,1.19004149,85.62,85.583,1.15090871]
[1771056889771,1.19004149,85.62,85.591,1.15090871]
[1771056890901,1.19004149,85.618,85.584,1.15090871]
[1771056892998,1.19004149,85.616,85.585,11.68429047]
[1771056893298,1.19004149,85.616,85.582,1.15090871]
[1771056894783,1.19004149,85.609,85.581,11.6848244]
[1771056895187,1.19004149,85.608,85.58,1.15090871]
[1771056896103,1.19004149,85.608,85.581,1.15090871]
[1771056896794,1.19004149,85.608,85.583,1.15090871]
[1771056899287,1.19004149,85.608,85.584,11.68442699]
[1771056899491,1.19004149,85.608,85.585,1.15090871]
[1771056900886,11.67924131,85.622,85.591,1.15090871]
[1771056901083,1.19004149,85.625,85.59,5.90266527]
[1771056901084,1.18450993,85.648,85.611,1.19356518]
[1771056901302,1.18450993,85.648,85.592,11.68333489]
[1771056901303,11.67653421,85.642,85.621,1.19356518]
[1771056902403,11.67569587,85.648,85.621,1.19356518]
[1771056902986,11.67569587,85.648,85.62,5.90266527]
[1771056902987,11.67569587,85.648,85.623,1.19356518]
[1771056903711,1.18450993,85.647,85.623,1.19356518]
[1771056903896,1.18450993,85.642,85.623,1.19356518]
[1771056904805,1.28450993,85.64,85.602,1.19356518]
[1771056905009,1.18450993,85.639,85.601,1.19356518]
[1771056905215,1.18450993,85.639,85.611,1.19356518]
[1771056906289,1.18450993,85.629,85.601,1.19356518]
[1771056906489,1.18450993,85.636,85.601,1.19356518]
[1771056907018,1.18450993,85.634,85.601,1.19356518]
[1771056907387,1.11118492,85.634,85.601,1.19356518]
[1771056907589,40.87113913,85.635,85.601,1.19356518]
[1771056907890,11.67746832,85.635,85.611,1.19356518]
[1771056909107,0.1,85.64,85.611,1.19356518]
[1771056909306,0.1,85.64,85.613,1.19356518]
[1771056909509,0.1,85.64,85.621,1.19356518]
[1771056909890,11.67583219,85.647,85.621,1.19356518]
[1771056910211,11.67419652,85.659,85.621,1.19356518]
[1771056910398,12.85870645,85.659,85.621,1.19356518]
[1771056910798,1.18450993,85.658,85.621,1.19356518]
[1771056911499,1.18450993,85.656,85.621,1.19356518]
[1771056911694,1.18450993,85.656,85.623,1.19356518]
[1771056912809,11.67474169,85.655,85.624,11.67896851]
[1771056912990,11.67474169,85.655,85.625,1.19356518]
[1771056915120,11.67474169,85.655,85.627,1.19356518]
[1771056915308,1.18450993,85.654,85.627,1.19356518]
[1771056915613,5.90266527,85.65,85.627,1.19356518]
[1771056915925,1.18450993,85.639,85.601,1.19356518]
[1771056916816,1.18450993,85.639,85.603,1.19356518]
[1771056917017,5.90266527,85.65,85.603,1.19356518]
[1771056917018,11.67831804,85.629,85.603,1.19356518]
[1771056917199,1.18450993,85.628,85.605,1.19356518]
[1771056917395,11.67831804,85.629,85.605,1.19356518]
[1771056918218,5.90266527,85.64,85.605,1.19356518]
[1771056918219,1.18450993,85.633,85.605,1.19356518]
[1771056918408,1.18450993,85.629,85.599,11.68230278]
[1771056918606,1.18450993,85.629,85.599,12.87586796]
[1771056918809,1.18450993,85.629,85.6,1.19356518]
[1771056920636,17.580941,85.63,85.601,11.68210651]
[1771056920931,1.18450993,85.629,85.602,1.19356518]
[1771056922702,1.18450993,85.619,85.587,1.19356518]
[1771056924522,1.18450993,85.619,85.591,1.19356518]
[1771056925231,1.18450993,85.617,85.591,1.19356518]
[1771056927313,1.18450993,85.615,85.585,1.19356518]
[1771056928420,1.18450993,85.615,85.586,11.68415395]
[1771056928631,1.18450993,85.615,85.587,1.19356518]
[1771056929231,1.18450993,85.613,85.587,1.19356518]
[1771056929416,1.18450993,85.609,85.587,1.19356518]
[1771056930236,1.18450993,85.613,85.587,1.19356518]
[1771056930429,1.18450993,85.611,85.587,1.19356518]
[1771056930735,17.58354367,85.61,85.587,1.19356518]
[1771056930915,17.58354367,85.61,85.581,1.19356518]
[1771056931112,17.58354367,85.61,85.574,1.12970248]
[1771056931331,5.90266527,85.6,85.574,1.12970248]
[1771056934433,11.68237946,85.599,85.574,1.12970248]
[1771056935520,1.20565453,85.598,85.574,1.12970248]
[1771056936123,1.20565453,85.598,85.568,1.12970248]
[1771056936519,1.20565453,85.609,85.571,1.12970248]
[1771056937418,1.20565453,85.619,85.581,1.12970248]
[1771056938737,1.20565453,85.617,85.583,1.12970248]
[1771056939121,1.20565453,85.609,85.583,1.12970248]
[1771056941741,1.10186105,85.607,85.583,1.12970248]
[1771056942045,1.10186105,85.607,85.579,1.15578577]
[1771056942430,1.10186105,85.599,85.572,11.68599657]
[1771056943044,1.10186105,85.599,85.573,1.15578577]
[1771056943250,1.10186105,85.616,85.581,1.15578577]
[1771056943630,7.00452632,85.62,85.591,1.15578577]
[1771056943853,12.78151159,85.619,85.593,1.15578577]
[1771056944350,1.10186105,85.618,85.593,1.15578577]
[1771056946943,1.10186105,85.618,85.595,1.15578577]
[1771056948046,1.10186105,85.616,85.588,1.15578577]
[1771056948552,1.10186105,85.616,85.588,12.83960159]
[1771056949049,1.10186105,85.616,85.589,1.15578577]
[1771056949657,1.10186105,85.616,85.582,1.15578577]
[1771056950539,11.67977212,85.619,85.591,1.15578577]
[1771056950939,12.78163317,85.619,85.591,1.15578577]
[1771056951247,12.78069316,85.625,85.593,1.15578577]
[1771056951445,1.10186105,85.624,85.593,1.15578577]
[1771056952146,1.10186105,85.622,85.595,1.15578577]
[1771056953242,11.6783916,85.629,85.595,1.15578577]
[1771056953551,1.10186105,85.628,85.595,1.15578577]
[1771056954241,1.10186105,85.619,85.595,1.15578577]
[1771056955137,1.10186105,85.619,85.59,1.15578577]
[1771056955338,1.10186105,85.619,85.591,1.15578577]
[1771056956357,11.67978696,85.618,85.593,1.15578577]
[1771056956650,1.10186105,85.617,85.593,1.15578577]
[1771056956863,1.10186105,85.609,85.587,11.68394719]
[1771056957536,11.67978696,85.618,85.588,1.15578577]
[1771056957836,1.10186105,85.617,85.588,1.15578577]
[1771056958137,1.10186105,85.615,85.589,12.83953017]
[1771056958648,1.10186105,85.615,85.59,1.15578577]
[1771056960052,1.10186105,85.615,85.591,11.68347139]
[1771056960556,1.10186105,85.615,85.592,1.15578577]
[1771056961138,1.11045083,85.599,85.572,1.13851027]
[1771056961647,1.11045083,85.599,85.568,1.13851027]
[1771056961853,1.11045083,85.609,85.582,1.13851027]
[1771056962041,1.11045083,85.609,85.581,11.68483658]
[1771056962042,1.11045083,85.621,85.591,1.13851027]
[1771056962247,1.11045083,85.619,85.582,1.13851027]
[1771056962759,1.11045083,85.619,85.591,1.13851027]
[1771056965257,1.11045083,85.619,85.593,1.13851027]
[1771056965760,12.79015035,85.619,85.593,1.13851027]
[1771056965946,11.67969952,85.619,85.593,1.13851027]
[1771056966650,5.89986488,85.63,85.59,5.89986488]
[1771056966651,11.6784827,85.628,85.595,1.13851027]
[1771056966845,11.67712497,85.638,85.611,1.13851027]
[1771056967049,11.67487799,85.654,85.621,1.13851027]
[1771056967257,11.67487799,85.654,85.631,1.13851027]
[1771056967456,46.24,85.666,85.602,47.46]
[1771056967457,11.67431057,85.659,85.641,1.13851027]
[1771056967759,11.67092655,85.683,85.652,1.13851027]
[1771056967941,1.11045083,85.679,85.652,1.13851027]
[1771056968645,1.11045083,85.677,85.652,1.13851027]
[1771056968865,1.11045083,85.677,85.641,1.13851027]
[1771056969340,1.11045083,85.677,85.651,1.13851027]
[1771056970948,11.6718801,85.676,85.651,1.13851027]
[1771056971162,6.09704717,85.697,85.671,1.13851027]
[1771056971463,0.1,85.7,85.671,1.13851027]
[1771056971766,1.11045083,85.698,85.663,1.13851027]
[1771056972058,1.11045083,85.679,85.65,7.03837515]
[1771056972359,5.89986488,85.67,85.64,7.03837515]
[1771056972558,1.11045083,85.669,85.64,7.03837515]
[1771056973067,11.67297007,85.668,85.641,1.13851027]
[1771056973260,1.11045083,85.659,85.628,11.67828927]
[1771056973466,1.11045083,85.659,85.629,1.13851027]
[1771056974549,1.11045083,85.659,85.63,1.13851027]
[1771056974946,1.11045083,85.659,85.631,1.13851027]
[1771056975264,11.67408589,85.66,85.633,1.13851027]
[1771056975465,1.11045083,85.697,85.651,1.13851027]
[1771056975775,1.11045083,85.697,85.671,1.13851027]
[1771056976088,1.11045083,85.697,85.671,7.51e-06]
[1771056976446,0.1,85.7,85.68,5.89986488]
[1771056976861,0.1,85.7,85.69,17.51988055]
[1771056977754,11.66689522,85.713,85.683,11.6708136]
[1771056977958,11.66689522,85.713,85.684,0.79359895]
[1771056978364,1.11045083,85.719,85.678,0.79359895]
[1771056978566,1.11045083,85.709,85.671,0.79378923]
[1771056978751,17.51988055,85.7,85.671,0.79378923]
[1771056979068,1.11045083,85.699,85.671,0.79378923]
[1771056979571,1.11045083,85.699,85.672,11.67242506]
[1771056979754,1.11045083,85.697,85.671,0.79378923]
[1771056979956,1.11045083,85.697,85.666,11.67319721]
[1771056980456,1.11045083,85.697,85.667,0.79415653]
[1771056980648,11.66822327,85.703,85.671,0.79415653]
[1771056981571,12.7786741,85.703,85.671,0.79415653]
[1771056981868,12.7786741,85.703,85.672,11.67242506]
[1771056982051,12.7786741,85.703,85.673,0.79435454]
[1771056982251,11.66729211,85.71,85.681,0.79435454]
[1771056983967,12.77647586,85.719,85.691,0.79470269]
[1771056984466,11.66602503,85.719,85.7,17.51988055]
[1771056984773,11.66602503,85.719,85.698,0.79470269]
[1771056985465,1.21045083,85.72,85.698,0.79470269]
[1771056985974,1.21045083,85.72,85.693,11.66947664]
[1771056986157,1.21045083,85.72,85.694,0.79504176]
[1771056986878,0.1,85.72,85.701,0.7952115]
[1771056987055,0.1,85.72,85.71,17.51988055]
[1771056987259,0.1,85.72,85.711,0.7952115]
[1771056987460,0.1,85.73,85.71,17.51988055]
[1771056987461,0.1,85.74,85.713,0.6954534]
[1771056987886,0.1,85.74,85.721,0.6954534]
[1771056988471,0.1,85.74,85.73,17.51988055]
[1771056989468,0.1,85.74,85.727,0.69569233]
[1771056990383,0.1,85.74,85.72,18.21581]
[1771056990563,0.1,85.74,85.721,0.69616343]
[1771056991467,0.1,85.74,85.721,11.66575284]
[1771056991682,0.1,85.74,85.722,0.69662191]
[1771056991984,0.1,85.74,85.724,0.69662191]
[1771056993263,1.07780845,85.739,85.703,0.6968483]
[1771056993568,1.07780845,85.729,85.703,0.6968483]
[1771056993766,1.07780845,85.729,85.698,11.66876389]
[1771056994182,1.07780845,85.727,85.698,11.66876389]
[1771056994884,1.07780845,85.719,85.688,11.67020386]
[1771056995268,1.07780845,85.719,85.686,11.67051793]
[1771056995474,1.07780845,85.719,85.685,47.36]
[1771056995973,1.07780845,85.709,85.673,11.67215893]
[1771056996279,17.51988055,85.71,85.672,0.69753312]
[1771056996280,1.07780845,85.707,85.672,0.69753312]
[1771056996682,1.07780845,85.707,85.67,17.51988055]
[1771056997770,1.07780845,85.705,85.67,17.51988055]
[1771056997985,1.07780845,85.699,85.668,11.67288591]
[1771056998171,1.07780845,85.699,85.67,17.51988055]
[1771056998377,1.07780845,85.699,85.668,11.67288591]
[1771056999470,1.12088281,85.705,85.671,0.69862172]
[1771057001289,1.12088281,85.703,85.671,0.69862172]
[1771057001667,1.12088281,85.699,85.671,0.69862172]
[1771057002195,11.66806683,85.704,85.673,0.69904854]
[1771057002569,7.01100783,85.7,85.673,0.69904854]
[1771057003385,12.7896304,85.699,85.673,0.69904854]
[1771057003600,1.12088281,85.698,85.673,0.69904854]
[1771057004489,1.12088281,85.696,85.672,11.67242506]
[1771057004692,1.12088281,85.696,85.668,11.67294056]
[1771057006695,1.12088281,85.696,85.664,0.70008857]
[1771057007370,29.16973836,85.706,85.664,0.70008857]
[1771057007371,1.12088281,85.689,85.664,0.70008857]
[1771057008286,1.12088281,85.679,85.65,0.70028127]
[1771057008687,1.12088281,85.693,85.661,0.70046542]
[1771057008893,17.55857381,85.7,85.671,0.70046542]
[1771057009084,18.67945662,85.7,85.671,0.70046542]
[1771057009285,1.12088281,85.699,85.671,0.70046542]
[1771057009883,1.12088281,85.689,85.662,0.70065827]
[1771057010499,1.12088281,85.689,85.661,47.56]
[1771057010687,1.12088281,85.687,85.662,11.67378767]
[1771057010880,1.12088281,85.687,85.662,12.37463828]
[1771057013271,1.12088281,85.685,85.662,12.37463828]
[1771057013796,1.12088281,85.685,85.663,0.70140371]
[1771057014097,1.12088281,85.69,85.663,0.70140371]
[1771057015501,11.67010934,85.689,85.665,0.7017549]
[1771057016000,7.01084519,85.69,85.665,0.7017549]
[1771057016296,1.12088281,85.69,85.665,0.7017549]
[1771057016687,29.17152858,85.7,85.665,0.7017549]
[1771057016888,1.12088281,85.709,85.671,0.70192066]
[1771057017086,1.12088281,85.718,85.681,0.70192066]
[1771057018309,1.12088281,85.716,85.683,0.7020986]
[1771057018480,5.88996238,85.72,85.691,0.7020986]
[1771057018998,1.12088281,85.709,85.683,0.70227287]
[1771057019499,1.12088281,85.709,85.67,5.88996238]
[1771057019500,1.12088281,85.689,85.66,29.18510032]
[1771057019683,5.88996238,85.71,85.655,11.67474169]
[1771057019684,1.12088281,85.679,85.655,11.67474169]
[1771057020103,5.88996238,85.71,85.656,0.70244633]
[1771057020104,1.12088281,85.69,85.656,0.70244633]
[1771057020409,5.88996238,85.71,85.681,0.70244633]
[1771057020586,1.12088281,85.717,85.681,0.70244633]
[1771057020899,1.12088281,85.717,85.68,5.88996238]
[1771057020900,11.66558041,85.723,85.691,0.70261667]
[1771057021279,5.88996238,85.73,85.694,0.70278325]
[1771057021485,1.11620835,85.743,85.704,0.70278325]
[1771057021783,1.11620835,85.739,85.704,0.70278325]
[1771057021978,1.11620835,85.719,85.681,0.70295629]
[1771057022298,1.11620835,85.719,85.685,11.67065414]
[1771057022490,1.11620835,85.719,85.686,0.70295629]
[1771057022885,1.11620835,85.719,85.69,5.88996238]
[1771057023107,1.11620835,85.719,85.691,0.70311134]
[1771057023899,1.11620835,85.719,85.69,5.88996238]
[1771057023900,1.11620835,85.717,85.685,11.67065414]
[1771057024804,1.11620835,85.717,85.685,0.70343594]
[1771057025007,0.1,85.74,85.711,0.70343594]
[1771057025795,0.1,85.74,85.721,0.70357892]
[1771057026010,0.1,85.74,85.731,0.70357892]
[1771057026307,1.11620835,85.738,85.703,0.70357892]
[1771057026687,0.1,85.74,85.711,0.70373515]
[1771057027006,0.1,85.74,85.713,0.70373515]
[1771057027794,1.11620835,85.739,85.712,11.66697778]
[1771057027994,1.11620835,85.729,85.707,8.78378551]
[1771057028196,1.11620835,85.729,85.701,11.66843536]
[1771057028388,0.1,85.74,85.674,29.18016528]
[1771057028389,1.11620835,85.709,85.674,29.18016528]
[1771057028589,5.98996238,85.74,85.701,1.18213869]
[1771057028912,5.98996238,85.74,85.723,1.18213869]
[1771057028913,0.1,85.74,85.723,1.18213869]
[1771057030617,0.1,85.74,85.73,5.88996238]
[1771057030913,0.1,85.74,85.722,11.66561676]
[1771057031121,1.11620835,85.739,85.71,11.66718462]
[1771057031314,1.11620835,85.739,85.71,17.557147]
[1771057031703,1.11620835,85.739,85.711,1.18213869]
[1771057031906,1.11620835,85.739,85.71,11.66718462]
[1771057032094,1.11620835,85.739,85.71,17.557147]
[1771057033006,1.11620835,85.739,85.71,18.73928569]
[1771057033314,0.1,85.74,85.721,1.18213869]
[1771057033515,0.1,85.74,85.731,1.18213869]
[1771057033722,0.1,85.75,85.731,1.18213869]
[1771057034801,0.1,85.75,85.732,11.66425605]
[1771057035013,1.21620835,85.75,85.721,1.18213869]
[1771057035205,0.1,85.75,85.73,5.88996238]
[1771057036306,1.21620835,85.75,85.72,1.18213869]
[1771057036507,1.11620835,85.749,85.71,5.88996238]
[1771057037001,1.11620835,85.747,85.711,11.6671139]
[1771057037717,1.11620835,85.747,85.711,12.84925259]
[1771057037922,1.11620835,85.747,85.712,1.18213869]
[1771057039223,1.11620835,85.746,85.71,5.88996238]
[1771057039919,1.11620835,85.746,85.711,1.18213869]
[1771057040718,1.21620835,85.75,85.721,1.18213869]
[1771057041017,0.1,85.75,85.73,5.88996238]
[1771057041198,0.1,85.75,85.74,5.88996238]
[1771057041404,11.65936013,85.768,85.741,1.18213869]
[1771057041906,1.11620835,85.767,85.741,1.18213869]
[1771057042107,1.11620835,85.767,85.74,5.88996238]
[1771057042704,1.11620835,85.759,85.725,12.84732002]
[1771057043005,1.11620835,85.759,85.73,5.88996238]
[1771057043604,1.11620835,85.759,85.731,1.18213869]
[1771057043917,40.80871207,85.766,85.74,5.88996238]
[1771057044116,41.92492042,85.766,85.738,1.18213869]
[1771057044412,1.11620835,85.765,85.738,1.18213869]
[1771057044620,1.11620835,85.763,85.731,1.18213869]
[1771057044821,1.11620835,85.763,85.729,11.66461875]
[1771057045617,1.11620835,85.763,85.73,5.88996238]
[1771057045814,1.11620835,85.763,85.731,1.18213869]
[1771057047423,1.11620835,85.761,85.731,1.18213869]
[1771057047629,1.11620835,85.761,85.714,1.18213869]
[1771057047830,1.11620835,85.761,85.711,109.36]
[1771057047831,1.11620835,85.749,85.713,1.18213869]
[1771057049530,1.11620835,85.749,85.711,109.36]
[1771057049531,1.11620835,85.747,85.715,1.18213869]
[1771057051833,1.11620835,85.747,85.702,47.5]
[1771057051834,1.12065537,85.739,85.703,1.1734983]
[1771057052133,1.12065537,85.739,85.71,7.06346068]
[1771057052325,1.12065537,85.739,85.711,1.1734983]
[1771057052726,11.66235159,85.746,85.711,1.1734983]
[1771057053030,1.12065537,85.745,85.711,1.1734983]
[1771057055521,1.12065537,85.745,85.713,1.1734983]
[1771057055715,1.12065537,85.745,85.721,1.1734983]
[1771057056621,11.66183193,85.75,85.723,1.1734983]
[1771057057838,1.12065537,85.759,85.731,1.1734983]
[1771057058051,1.12065537,85.766,85.741,1.1734983]
[1771057058343,132.64251023,85.786,85.741,1.1734983]
[1771057058344,1.12065537,85.778,85.741,1.1734983]
[1771057059125,12.75361369,85.777,85.743,1.19345135]
[1771057059328,1.0954769,85.776,85.743,1.19345135]
[1771057060049,5.88996238,85.78,85.742,11.66289566]
[1771057060050,1.0954769,85.808,85.771,1.19345135]
[1771057060223,1.0954769,85.789,85.763,1.19345135]
[1771057060547,1.0954769,85.789,85.755,1.19345135]
[1771057060847,1.0954769,85.779,85.743,1.19345135]
[1771057061221,1.0954769,85.779,85.742,40.82013481]
[1771057061222,1.0954769,85.778,85.745,1.19345135]
[1771057062241,1.0954769,85.798,85.761,1.19345135]
[1771057062549,1.0954769,85.798,85.771,1.19345135]
[1771057062741,1.0954769,85.806,85.781,1.19345135]
[1771057062945,11.65433249,85.805,85.781,1.19345135]
[1771057063134,0.1,85.81,85.781,1.19345135]
[1771057063336,0.1,85.81,85.783,1.19345135]
[1771057065347,0.1,85.81,85.785,1.19345135]
[1771057065936,0.1,85.81,85.791,1.19345135]
[1771057066435,1.0954769,85.814,85.784,11.65718548]
[1771057066436,0.1,85.82,85.801,1.19345135]
[1771057066944,5.97320684,85.84,85.801,1.19345135]
[1771057067324,0.1,85.84,85.803,1.19345135]
[1771057067729,5.87320684,85.83,85.803,1.19345135]
[1771057068342,17.52419957,85.83,85.803,1.19345135]
[1771057068540,11.65099273,85.83,85.805,1.19345135]
[1771057069145,1.0954769,85.829,85.805,1.19345135]
[1771057069362,17.52419957,85.83,85.805,1.19345135]
[1771057069530,12.74583802,85.835,85.805,1.19345135]
[1771057069730,1.0954769,85.834,85.805,1.19345135]
[1771057070447,1.0954769,85.834,85.804,11.65446832]
[1771057070448,1.0954769,85.839,85.811,1.19345135]
[1771057070839,1.0954769,85.839,85.82,5.87320684]
[1771057071042,0.1,85.84,85.82,7.06665819]
[1771057071362,0.1,85.84,85.821,1.19345135]
[1771057073944,0.1,85.84,85.83,5.87320684]
[1771057074333,1.0954769,85.853,85.831,1.19345135]
[1771057074532,1.0954769,85.86,85.831,1.19345135]
[1771057075443,11.64510381,85.873,85.85,5.87320684]
[1771057075649,11.64510381,85.873,85.832,11.65066641]
[1771057075650,1.0954769,85.872,85.841,1.19345135]
[1771057075955,1.0954769,85.872,85.842,1.19345135]
[1771057076177,1.0954769,85.872,85.85,5.87320684]
[1771057076341,11.64510381,85.873,85.851,1.19345135]
[1771057076543,11.64409258,85.881,85.861,1.19345135]
[1771057076938,11.64274788,85.891,85.87,5.87320684]
[1771057077150,11.63859824,85.921,85.871,1.19345135]
[1771057077455,1.0954769,85.887,85.853,1.19345135]
[1771057077956,1.0954769,85.879,85.85,5.87320684]
[1771057078462,1.0954769,85.879,85.842,11.64923692]
[1771057078641,1.0954769,85.879,85.85,5.87320684]
[1771057078969,40.75074515,85.888,85.832,1.19345135]
[1771057078970,1.0954769,85.869,85.832,1.19345135]
[1771057079278,1.0954769,85.869,85.8,5.87320684]
[1771057079279,1.0954769,85.869,85.84,5.87320684]
[1771057079436,5.87320684,85.86,85.83,5.87320684]
[1771057079633,1.0954769,85.859,85.831,1.19345135]
[1771057079836,1.0954769,85.864,85.831,1.19345135]
[1771057080359,1.0954769,85.859,85.831,1.19345135]
[1771057080558,1.0954769,85.857,85.82,5.87320684]
[1771057080861,1.0954769,85.857,85.824,1.19345135]
[1771057081245,7.04606411,85.85,85.824,1.19345135]
[1771057081439,7.04606411,85.85,85.81,5.87320684]
[1771057081440,1.17285727,85.849,85.81,5.87320684]
[1771057081756,1.17285727,85.837,85.802,1.08030447]
[1771057082146,1.17285727,85.849,85.811,1.08030447]
[1771057082344,11.64713829,85.858,85.831,1.08030447]
[1771057083064,11.64713829,85.858,85.828,11.65113359]
[1771057083065,1.17285727,85.857,85.828,10.23143806]
[1771057083261,1.17285727,85.849,85.82,5.87320684]
[1771057083643,1.17285727,85.849,85.821,11.65215972]
[1771057084363,1.17285727,85.849,85.815,11.6529491]
[1771057084563,1.17285727,85.829,85.79,5.87320684]
[1771057085260,1.17285727,85.829,85.791,1.08030447]
[1771057085463,1.17285727,85.819,85.783,1.08030447]
[1771057085664,40.77448215,85.838,85.774,1.08030447]
[1771057085665,5.87320684,85.81,85.774,1.08030447]
[1771057085963,1.17285727,85.809,85.77,5.87320684]
[1771057086189,1.17285727,85.819,85.781,1.08030447]
[1771057086368,1.17285727,85.819,85.791,1.08030447]
[1771057086975,11.65256706,85.818,85.791,1.08030447]
[1771057087148,12.82539333,85.819,85.792,11.65609847]
[1771057087355,1.17285727,85.809,85.782,1.08030447]
[1771057087960,11.65164927,85.825,85.791,1.08030447]
[1771057088161,11.65071691,85.832,85.801,1.08030447]
[1771057088344,1.17285727,85.829,85.801,1.08030447]
[1771057088544,1.17285727,85.829,85.791,1.08030447]
[1771057089571,1.17285727,85.819,85.78,5.87320684]
[1771057089773,1.17285727,85.809,85.78,5.87320684]
[1771057089988,1.17285727,85.819,85.781,1.08030447]
[1771057090482,1.17285727,85.809,85.78,5.87320684]
[1771057090653,1.17285727,85.809,85.781,1.08030447]